bitfinex-derivatives/quotes_ETHF0:USTF0_20210405
["timestamp","ask_amount","ask_price","bid_price","bid_amount"]
[1617603617412,2.90695,2008.8,2008.7,2.90695]
[1617603617612,3.88895,2008.8,2008.7,2.90695]
[1617603619213,6.17295,2008.8,2008.7,2.90695]
[1617603620215,6.17295,2008.8,2008.5,5.20551271]
[1617603620615,6.17295,2008.8,2008.3,6.36229331]
[1617603620616,78.5893,2008.5,2008.3,5.20562292]
[1617603621418,2.90695,2008.4,2008.0,8.11326683]
[1617603622518,3.91665,2008.4,2008.0,8.11326683]
[1617603623218,3.91665,2008.4,2008.1,5.20911209]
[1617603623819,2.90695,2008.4,2008.1,5.20911209]
[1617603624421,2.90695,2008.4,2008.2,5.20880071]
[1617603624621,2.90695,2008.4,2008.3,5.2087753]
[1617603624920,3.91475,2008.4,2008.3,5.2087753]
[1617603627522,5.91475,2008.4,2008.0,5.20938265]
[1617603627725,5.77915,2008.4,2008.0,5.20938265]
[1617603628125,5.77915,2008.4,2007.9,5.20949578]
[1617603628325,66.4581,2008.0,2007.9,5.20949578]
[1617603629025,66.4581,2008.0,2007.8,5.20979347]
[1617603629226,2.0,2007.9,2007.8,5.20979347]
[1617603629427,7.29465,2007.9,2007.8,5.20979347]
[1617603629828,7.29465,2007.9,2007.7,5.21007941]
[1617603630228,7.29465,2007.9,2007.6,5.21017943]
[1617603630627,7.29465,2007.9,2007.4,6.36799708]
[1617603630628,7.29465,2007.9,2007.8,6.38111658]
[1617603630829,7.29465,2007.9,2007.7,6.38119933]
[1617603632732,37.29465,2007.9,2007.7,6.38119933]
[1617603632934,37.29465,2007.9,2007.8,5.22116569]
[1617603633334,37.29465,2007.9,2007.7,5.22133865]
[1617603633533,37.29465,2007.9,2007.7,3.96803865]
[1617603633735,37.29465,2007.9,2006.9,2.90695]
[1617603633736,37.29465,2007.9,2007.4,6.38189252]
[1617603634535,37.29465,2007.9,2007.1,6.38260025]
[1617603634734,37.29465,2007.9,2006.5,7.54381387]
[1617603634933,101.07815,2007.9,2006.7,72.6505]
[1617603635635,2.90695,2006.8,2006.7,75.55745]
[1617603637036,5.64995,2006.8,2006.7,2.90695]
[1617603637237,5.64995,2006.8,2005.8,2.33562467]
[1617603637638,2.743,2006.8,2006.4,2.90695]
[1617603638439,79.2773,2007.0,2006.4,2.90695]
[1617603639640,2.90695,2006.5,2006.4,2.90695]
[1617603639841,4.90825,2006.5,2005.7,72.9194]
[1617603641642,2.0013,2006.5,2005.8,2.90695]
[1617603642042,32.0013,2006.5,2005.0,7.51705182]
[1617603642241,82.0933,2005.9,2005.0,7.51705182]
[1617603642441,82.0933,2005.9,2004.7,7.51764262]
[1617603642442,114.0663,2005.9,2004.7,7.51764262]
[1617603642842,114.0663,2005.9,2004.6,7.51758478]
[1617603643543,115.0777,2005.9,2004.6,7.51758478]
[1617603643743,115.0777,2005.9,2005.1,5.20504589]
[1617603643946,115.0777,2005.9,2005.0,8.11206314]
[1617603644145,84.0663,2005.9,2005.0,8.11206314]
[1617603644345,84.0663,2005.9,2005.0,2.90695]
[1617603644744,84.0663,2005.9,2005.1,5.20509519]
[1617603645747,2.90695,2005.2,2005.1,5.20509519]
[1617603645946,5.68815,2005.2,2005.1,5.20509519]
[1617603647550,5.68815,2005.2,2005.0,2.90695]
[1617603650550,82.70585,2005.2,2005.0,2.90695]
[1617603652148,82.70585,2005.2,2003.7,71.2799]
[1617603653148,83.70895,2005.2,2003.7,71.2799]
[1617603653550,113.70895,2005.2,2003.7,71.2799]
[1617603653749,2.0,2005.1,2004.4,2.90695]
[1617603653949,30.0,2005.0,2003.7,71.2799]
[1617603654150,30.0,2005.0,2003.0,0.4]
[1617603654350,83.5396,2004.2,2003.0,0.4]
[1617603654554,85.3857,2004.2,2003.0,0.4]
[1617603657856,1.8461,2004.2,2003.5,2.90695]
[1617603658057,1.0031,2005.2,2004.0,72.2211]
[1617603658256,2.0,2005.4,2004.0,74.9079]
[1617603658457,59.0403,2005.6,2004.0,74.9079]
[1617603659666,59.0403,2005.6,2004.0,72.2211]
[1617603659863,2.0,2005.5,2004.3,2.90695]
[1617603660063,4.2078,2005.5,2004.3,2.90695]
[1617603661466,2.0,2005.5,2004.3,2.90695]
[1617603661862,2.0,2005.5,2004.6,2.90695]
[1617603662468,59.0403,2005.6,2004.6,2.90695]
[1617603663464,61.0403,2005.6,2004.6,2.90695]
[1617603663864,2.90695,2004.7,2004.6,2.90695]
[1617603664264,0.9852,2006.0,2004.7,79.7146]
[1617603664465,77.2439,2006.4,2004.7,82.4416]
[1617603665765,77.2439,2006.4,2005.3,2.90695]
[1617603666064,78.2466,2006.4,2005.3,2.90695]
[1617603666266,2.0,2006.3,2005.3,2.90695]
[1617603666867,77.2439,2006.4,2005.3,2.90695]
[1617603667068,77.2439,2006.4,2005.3,4.88775]
[1617603667268,0.9956,2007.2,2005.3,4.88775]
[1617603667467,0.9956,2007.2,2005.6,59.7844]
[1617603667671,70.9042,2007.5,2005.6,59.7844]
[1617603667867,70.9042,2007.5,2006.3,2.90695]
[1617603668068,2.0,2007.4,2006.3,5.45715]
[1617603668568,32.0,2007.4,2006.3,2.5502]
[1617603669169,32.0,2007.4,2005.6,59.7844]
[1617603669369,34.8336,2007.4,2005.6,59.7844]
[1617603669869,2.90695,2005.7,2005.6,62.69135]
[1617603670069,2.90695,2005.7,2005.6,2.90695]
[1617603672370,73.701,2006.4,2005.6,2.90695]
[1617603672571,71.8282,2006.4,2005.6,4.77965]
[1617603672973,2.0,2008.1,2005.6,4.77965]
[1617603673371,77.3126,2007.6,2005.7,80.6985]
[1617603673970,77.3126,2007.6,2006.5,2.90695]
[1617603674170,77.3126,2007.6,2006.5,5.37615]
[1617603675973,78.3035,2007.6,2006.9,2.90695]
[1617603676173,2.0,2008.5,2006.9,2.90695]
[1617603676675,32.0,2008.5,2006.7,66.7099]
[1617603677375,34.3696,2008.5,2006.7,66.7099]
[1617603677976,2.90695,2006.8,2006.7,66.7099]
[1617603678476,2.90695,2006.8,2006.4,2.90695]
[1617603679976,2.90695,2006.5,2006.4,2.90695]
[1617603680376,2.90695,2006.5,2006.0,66.8575]
[1617603680777,2.90695,2006.5,2004.0,13.9021]
[1617603680978,72.16455,2006.5,2004.8,2.0]
[1617603681176,72.16455,2006.5,2004.6,69.6973]
[1617603681976,69.2576,2006.5,2005.5,2.90695]
[1617603682177,2.6892,2006.9,2005.7,69.7003]
[1617603682376,4.6892,2006.9,2005.7,69.7003]
[1617603682778,32.6892,2006.9,2005.7,69.7003]
[1617603683483,2.0,2006.8,2005.7,69.7003]
[1617603683877,2.90695,2005.8,2005.0,2.90695]
[1617603684077,4.95425,2005.8,2003.8,2.0]
[1617603684278,58.0843,2005.7,2003.8,75.8818]
[1617603684677,88.0843,2005.7,2003.8,75.8818]
[1617603684878,88.0843,2005.7,2003.8,73.8818]
[1617603685480,89.0934,2005.7,2003.8,73.8818]
[1617603685680,91.0934,2005.7,2003.8,73.8818]
[1617603685880,91.0934,2005.7,2003.9,2.90695]
[1617603687782,90.0843,2005.7,2003.9,2.90695]
[1617603687981,90.0843,2005.7,2004.5,2.90695]
[1617603688583,88.0843,2005.7,2004.5,2.90695]
[1617603688783,58.0843,2005.7,2004.5,2.90695]
[1617603688983,30.0,2006.4,2004.5,2.90695]
[1617603689183,30.0,2006.4,2004.5,61.96045]
[1617603689885,2.90695,2005.9,2005.8,2.90695]
[1617603690086,2.90695,2005.9,2005.8,5.45605]
[1617603690985,2.90695,2005.9,2005.8,2.90695]
[1617603691386,2.90695,2005.9,2005.5,67.0193]
[1617603691985,2.90695,2005.6,2005.5,67.0193]
[1617603692586,2.90695,2005.6,2004.1,2.5644]
[1617603692786,2.90695,2005.6,2004.3,70.1273]
[1617603693988,2.90695,2005.6,2005.4,2.88995]
[1617603694389,2.90695,2005.6,2005.4,5.19915]
[1617603696990,85.9381,2007.0,2005.4,5.19915]
[1617603697190,32.0,2006.9,2005.4,5.19915]
[1617603697792,30.0,2006.9,2005.4,5.19915]
[1617603697993,30.0,2006.9,2006.0,2.90695]
[1617603698593,2.0,2007.4,2006.0,2.90695]
[1617603698796,2.0,2007.4,2006.4,61.7264]
[1617603698993,2.0,2007.4,2006.4,63.7892]
[1617603699393,30.0,2007.5,2006.4,63.7892]
[1617603699596,30.9827,2008.1,2006.4,63.7892]
[1617603699795,2.0,2008.0,2006.4,63.7892]
[1617603699996,2.0,2008.0,2006.8,2.90695]
[1617603700197,32.0,2008.0,2006.8,2.90695]
[1617603702101,2.90695,2006.9,2006.4,64.63335]
[1617603704002,2.90695,2006.5,2006.4,64.63335]
[1617603711309,5.07715,2006.5,2006.4,2.90695]
[1617603711510,5.07715,2006.5,2006.0,68.6132]
[1617603712112,2.90695,2006.1,2006.0,68.6132]
[1617603715214,76.5228,2007.4,2006.0,68.6132]
[1617603715414,76.5228,2007.4,2006.0,70.8072]
[1617603716113,76.5228,2007.4,2006.3,2.90695]
[1617603716714,0.9922,2007.7,2006.3,2.90695]
[1617603717116,0.9922,2007.7,2006.7,75.0157]
[1617603717315,0.9922,2007.7,2006.7,77.807]
[1617603717715,57.3072,2008.4,2006.7,77.807]
[1617603718115,57.3072,2008.4,2007.1,2.90695]
[1617603718316,30.0,2008.7,2007.1,2.90695]
[1617603718517,30.0,2008.7,2007.5,66.9937]
[1617603718715,32.0,2008.6,2007.5,69.3636]
[1617603719516,30.0,2008.6,2007.5,69.3636]
[1617603720117,2.90695,2007.6,2007.5,72.27055]
[1617603720517,2.90695,2007.6,2007.5,69.3636]
[1617603721819,2.90695,2007.6,2007.5,66.9937]
[1617603722019,2.90695,2007.6,2006.1,5.19365635]
[1617603722222,1.8563,2007.6,2007.0,2.90695]
[1617603723622,2.7622,2008.2,2007.0,2.90695]
[1617603723823,61.487,2008.3,2007.0,2.90695]
[1617603724122,2.90695,2007.1,2007.0,2.90695]
[1617603730529,2.90695,2007.1,2005.8,84.30754221]
[1617603730530,2.90695,2007.1,2005.8,5.19664221]
[1617603730731,102.27265,2007.1,2005.8,5.19664221]
[1617603730931,102.27265,2007.1,2005.7,5.19712356]
[1617603731331,102.27265,2007.1,100.0,100.0]
[1617603731332,32.90695,2007.1,2005.4,5.19769416]
[1617603731731,32.90695,2007.1,2005.2,5.19783255]
[1617603731933,66.3461,2006.8,2005.5,5.20074517]
[1617603732131,68.6014,2006.8,2006.2,2.90695]
[1617603732332,2.2553,2006.8,2006.2,2.90695]
[1617603733732,2.2553,2006.8,2005.6,74.198]
[1617603734132,2.2553,2006.8,2006.2,2.90695]
[1617603735134,2.2553,2006.8,2005.6,74.198]
[1617603736135,2.2553,2006.8,2006.2,2.90695]
[1617603736936,2.2553,2006.8,2005.6,74.198]
[1617603737137,97.7753,2007.0,2005.6,74.198]
[1617603737337,1.766,2006.8,2005.6,74.198]
[1617603738141,1.766,2006.8,2005.8,2.90695]
[1617603738839,1.766,2006.8,2005.6,74.198]
[1617603740244,2.90695,2005.7,2005.6,74.198]
[1617603740442,4.76765,2005.7,2005.1,2.90695]
[1617603741446,5.77505,2005.7,2005.1,2.90695]
[1617603742152,2.90695,2005.2,2005.1,2.90695]
[1617603742347,5.24105,2005.2,2005.1,2.90695]
[1617603742949,5.24105,2005.2,2004.9,5.20230865]
[1617603743348,5.24105,2005.2,2004.8,5.20278196]
[1617603743547,5.24105,2005.2,2004.6,5.20317448]
[1617603743948,5.24105,2005.2,2004.5,5.20335279]
[1617603744348,2.3341,2005.2,2004.8,2.90695]
[1617603745548,2.3341,2005.2,2004.9,0.25704251]
[1617603746251,2.90695,2005.0,2004.9,0.25704251]
[1617603746851,2.3341,2005.2,2004.9,0.25704251]
[1617603747054,2.3341,2005.2,2005.0,68.1324]
[1617603747251,0.9881,2005.3,2005.0,68.1324]
[1617603747451,1.8607,2005.7,2005.0,68.1324]
[1617603747652,70.1258,2006.2,2005.0,68.1324]
[1617603748055,70.1258,2006.2,2005.1,5.21161096]
[1617603748253,70.1258,2006.2,2005.4,2.90695]
[1617603749954,70.1258,2006.2,2005.4,8.11796433]
[1617603750357,2.90695,2005.5,2005.4,8.11796433]
[1617603752057,2.90695,2005.5,2005.4,2.90695]
[1617603752456,2.90695,2005.5,2005.4,8.11784511]
[1617603753258,2.90695,2005.5,2005.4,2.90695]
[1617603753761,2.90695,2005.5,2005.4,9.28306958]
[1617603753961,2.90695,2005.5,2005.4,2.90695]
[1617603754362,2.90695,2005.5,2005.4,9.2830793]
[1617603754561,30.0,2006.7,2005.4,9.2830793]
[1617603754762,1.0029,2007.2,2005.4,11.27826987]
[1617603754965,72.8174,2006.4,2005.4,11.0210793]
[1617603755163,72.8174,2006.4,2005.7,5.21642896]
[1617603755562,72.8174,2006.4,2005.8,5.2164306]
[1617603755966,72.8174,2006.4,2005.7,5.21647256]
[1617603756362,72.8174,2006.4,2005.8,2.90695]
[1617603756562,72.8174,2006.4,2005.7,5.21647256]
[1617603756963,72.8174,2006.4,2005.6,5.21678785]
[1617603758264,2.90695,2005.7,2005.6,8.12373785]
[1617603760469,2.90695,2005.7,2005.6,5.21678785]
[1617603761174,2.90695,2005.7,2005.5,5.21686325]
[1617603761575,2.90695,2005.7,2005.6,5.21689314]
[1617603762276,2.90695,2005.7,2005.5,5.21716702]
[1617603762475,4.65555,2005.7,2005.5,5.21716702]
[1617603762676,4.65555,2005.7,2005.4,5.21743727]
[1617603763476,68.2052,2005.5,2005.4,5.21743727]
[1617603763876,70.4795,2005.5,2004.9,5.21878665]
[1617603764076,100.4795,2005.5,2004.8,5.21858392]
[1617603764275,2.90695,2004.9,2004.8,5.21858392]
[1617603764476,2.90695,2004.9,2004.3,5.21322416]
[1617603764477,5.84285,2004.9,2004.3,5.21322416]
[1617603764875,5.84285,2004.9,2004.1,5.21377829]
[1617603765076,64.612,2004.8,2004.1,5.21377829]
[1617603765277,64.612,2004.8,2003.7,5.21433112]
[1617603766378,64.612,2004.8,2003.8,2.90695]
[1617603768382,2.90695,2003.9,2003.8,2.90695]
[1617603769082,2.90695,2003.9,2003.8,8.1215975]
[1617603769682,2.90695,2003.9,2003.8,2.90695]
[1617603773184,0.9835,2004.6,2003.8,2.90695]
[1617603773384,64.612,2004.8,2003.8,5.01595]
[1617603773784,1.0086,2004.9,2003.8,5.01595]
[1617603774187,65.185,2004.1,2003.8,5.01595]
[1617603774385,2.90695,2003.9,2003.8,2.90695]
[1617603775084,2.90695,2003.9,2003.6,5.21484552]
[1617603775888,2.90695,2003.9,2003.5,5.2197923]
[1617603776387,2.90695,2003.6,2003.5,8.1267423]
[1617603776588,5.39665,2003.6,2003.0,0.4]
[1617603776987,81.1265,2003.3,2003.0,0.4]
[1617603778390,81.1265,2003.3,2003.2,2.90695]
[1617603778589,2.4897,2003.6,2003.2,86.57755]
[1617603778788,0.9871,2004.1,2003.2,86.57755]
[1617603778989,65.1663,2004.3,2003.2,86.57755]
[1617603780490,2.90695,2003.3,2003.2,86.57755]
[1617603780690,2.90695,2003.3,2003.2,2.90695]
[1617603781891,2.90695,2003.3,2003.0,0.4]
[1617603784296,60.3997,2003.2,2003.0,0.4]
[1617603788897,90.3997,2003.2,2003.0,0.4]
[1617603789298,60.3997,2003.2,2003.0,0.4]
[1617603790298,2.90695,2003.3,2003.0,0.4]
[1617603790498,2.90695,2003.3,2003.0,5.46575]
[1617603791698,76.1447,2003.1,2003.0,3.30695]
[1617603792298,76.1447,2003.1,2003.0,0.4]
[1617603801608,30.0,2003.1,2003.0,0.4]
[1617603802006,30.0,2003.1,2001.7,0.1]
[1617603802206,82.1188,2002.2,2001.7,0.1]
[1617603802407,114.4596,2002.2,2001.7,0.1]
[1617603802608,2.90695,2001.8,2001.6,2.84545]
[1617603803007,2.90695,2001.8,2001.7,68.9357]
[1617603803607,2.90695,2001.8,2001.7,66.217]
[1617603804708,2.88695,2001.8,2001.7,66.217]
[1617603805110,91.7754,2003.2,2001.7,66.217]
[1617603805309,32.229,2003.2,2001.6,2.84545]
[1617603805711,79.869,2003.1,2001.6,4.84545]
[1617603806313,30.0,2003.0,2001.6,2.84545]
[1617603806511,2.90695,2001.7,2001.6,2.84545]
[1617603806712,4.65135,2001.7,2001.6,2.84545]
[1617603807714,1.7444,2001.7,2001.6,2.84545]
[1617603807914,2.2541,2002.2,2001.6,2.84545]
[1617603808715,2.2541,2002.2,2002.1,2.90695]
[1617603808914,2.90695,2002.3,2002.2,70.5338]
[1617603810515,32.0,2004.1,2002.2,70.5338]
[1617603810718,32.0,2004.1,2002.9,2.90695]
[1617603810916,32.0,2004.1,2002.9,5.31845]
[1617603812121,32.9896,2004.1,2002.9,2.90695]
[1617603812318,32.9896,2004.1,2002.2,70.5338]
[1617603812518,34.7055,2004.1,2002.2,70.5338]
[1617603812719,34.7055,2004.1,2002.6,2.90695]
[1617603813420,33.7159,2004.1,2002.6,2.90695]
[1617603814623,2.90695,2002.7,2002.2,70.5338]
[1617603814820,5.68715,2002.7,2002.2,70.5338]
[1617603816021,5.68715,2002.7,2000.9,5.18259035]
[1617603816222,5.68715,2002.7,2001.3,60.0475]
[1617603816423,35.68715,2002.7,2001.3,60.0475]
[1617603816629,35.68715,2002.7,2001.3,62.95445]
[1617603816630,2.90695,2001.4,2001.3,62.95445]
[1617603816824,5.38405,2001.4,2001.3,2.90695]
[1617603817424,5.38405,2001.4,2000.3,67.3246]
[1617603818423,2.4771,2001.4,2000.3,67.3246]
[1617603818623,2.90695,2001.4,2001.3,2.90695]
[1617603820224,63.9471,2002.0,2001.3,2.90695]
[1617603820626,2.90695,2001.4,2001.3,2.90695]
[1617603820827,1.7743,2001.5,2001.3,2.90695]
[1617603821227,60.0703,2001.5,2001.3,2.90695]
[1617603822431,60.0603,2001.5,2001.3,2.90695]
[1617603822631,2.90695,2001.4,2001.3,2.90695]
[1617603823328,2.90695,2001.4,1999.8,69.9316]
[1617603823329,2.89695,2001.4,1999.8,69.9316]
[1617603824628,60.0603,2001.5,2001.0,2.90695]
[1617603826332,1.7643,2001.5,2001.0,2.90695]
[1617603826533,0.9855,2002.0,2001.0,2.90695]
[1617603826733,3.89245,2002.0,2001.9,2.90695]
[1617603827134,3.89245,2002.0,2001.0,1.9178]
[1617603827938,3.89245,2002.0,2000.7,70.2955]
[1617603828538,33.89245,2002.0,1999.7,2.0]
[1617603828740,74.3246,2001.2,2000.8,2.90695]
[1617603828937,77.1449,2001.2,2000.8,2.90695]
[1617603829837,76.1604,2001.2,2000.8,2.90695]
[1617603830740,2.90695,2000.9,2000.8,2.90695]
[1617603832944,0.9855,2002.0,2001.1,82.1122]
[1617603833145,30.0,2002.8,2001.1,84.5763]
[1617603834746,30.0,2002.8,2001.6,2.90695]
[1617603835949,32.0,2002.8,2001.6,2.90695]
[1617603836348,32.0,2002.8,2001.1,82.1122]
[1617603836549,33.9794,2002.8,2001.1,82.1122]
[1617603836748,33.9794,2002.8,2000.0,2.0]
[1617603836749,2.90695,2001.2,2001.0,2.90695]
[1617603836950,5.31425,2001.2,2001.0,2.90695]
[1617603837348,2.4073,2001.2,2001.0,2.90695]
[1617603838048,58.2315,2001.8,2001.0,2.90695]
[1617603838751,58.2315,2001.8,2001.6,2.90695]
[1617603838951,0.9861,2002.3,2000.5,2.8223]
[1617603839151,2.5763,2002.2,2000.5,2.8223]
[1617603839351,2.5763,2002.2,2000.8,70.3382]
[1617603840758,2.5763,2002.2,2001.3,2.90695]
[1617603841154,2.0,2002.1,2001.3,2.90695]
[1617603841554,93.961,2002.1,2000.2,64.2142]
[1617603842158,32.0,2002.1,1999.8,2.0]
[1617603842360,69.6308,2001.2,1999.8,2.0]
[1617603842564,71.3896,2001.2,1999.3,2.0]
[1617603842760,71.3896,2001.2,2000.8,2.90695]
[1617603844862,2.90695,2000.9,2000.8,2.90695]
[1617603845062,3.90645,2000.9,2000.8,2.90695]
[1617603845462,3.90645,2000.9,1999.5,2.0]
[1617603846364,3.90645,2000.9,1999.4,0.05164141]
[1617603846766,0.9995,2000.9,2000.1,2.90695]
[1617603847366,0.9995,2000.9,1999.4,0.05164141]
[1617603847565,64.5529,2000.1,1999.4,0.05164141]
[1617603847766,66.6246,2000.1,1999.4,0.05164141]
[1617603847966,96.6246,2000.1,1999.4,0.05164141]
[1617603848768,2.90695,1999.5,1999.4,0.05164141]
[1617603848966,5.22885,1999.5,1999.4,0.05164141]
[1617603849367,35.22885,1999.5,1999.4,0.05164141]
[1617603849568,5.22885,1999.5,1999.4,0.05164141]
[1617603850168,2.90695,1999.5,1999.4,0.05164141]
[1617603851774,30.0,2001.0,1999.4,0.05164141]
[1617603851971,30.0,2001.0,1999.4,2.11374141]
[1617603852770,71.6755,2001.4,1999.9,2.90695]
[1617603852969,71.6755,2001.4,1999.9,4.73625]
[1617603853771,71.6755,2001.4,1999.9,6.73625]
[1617603854770,71.6755,2001.4,2000.4,2.90695]
[1617603854973,2.0,2002.6,2000.4,5.33465]
[1617603855372,30.0,2002.5,2000.4,5.33465]
[1617603855572,32.0,2002.5,2000.4,5.33465]
[1617603856973,2.90695,2000.5,2000.4,5.33465]
[1617603857177,2.90695,2000.5,2000.4,2.90695]
[1617603857374,32.0,2002.5,2000.4,2.90695]
[1617603857573,32.0,2002.5,2000.4,4.85205]
[1617603857975,30.0,2002.5,2000.4,4.85205]
[1617603858374,32.0,2002.5,2000.4,4.85205]
[1617603858976,30.0,2002.5,2000.7,2.90695]
[1617603860876,30.0,2002.5,2001.3,2.90695]
[1617603861076,30.0,2002.5,2001.3,5.64705]
[1617603861275,30.0,2002.6,2001.3,5.64705]
[1617603861476,30.0,2002.6,2001.3,2.7401]
[1617603861679,32.0,2002.6,2001.3,2.7401]
[1617603861977,32.0,2002.6,2000.4,2.0]
[1617603862177,33.8076,2002.6,2000.4,2.0]
[1617603862977,33.8076,2002.6,2000.9,2.90695]
[1617603863478,31.8076,2002.6,2000.9,2.90695]
[1617603863678,31.8076,2002.6,2000.9,4.78025]
[1617603863879,30.0,2002.6,2000.9,4.78025]
[1617603864682,3.0106,2002.9,2000.9,4.78025]
[1617603864683,1.0106,2002.9,2000.9,4.78025]
[1617603864881,30.0,2003.2,2001.9,2.90695]
[1617603865079,30.0,2003.2,2001.9,5.47095]
[1617603865281,62.3776,2004.1,2001.9,5.47095]
[1617603865481,0.9951,2003.6,2001.9,5.47095]
[1617603865881,62.3776,2004.1,2001.9,5.47095]
[1617603866081,32.0,2004.0,2001.9,5.47095]
[1617603866783,63.3733,2004.1,2001.9,5.47095]
[1617603866983,63.3733,2004.1,2002.6,2.90695]
[1617603867181,63.3733,2004.1,2002.6,5.18315]
[1617603867182,0.9957,2004.1,2002.6,5.18315]
[1617603867384,57.7374,2003.9,2002.6,5.18315]
[1617603867583,30.0,2003.8,2002.6,5.18315]
[1617603867783,32.0,2003.8,2002.6,2.2762]
[1617603868183,32.0,2003.8,2001.4,59.1404]
[1617603868382,34.7983,2003.8,2001.4,59.1404]
[1617603868984,34.7983,2003.8,2001.8,2.90695]
[1617603870987,2.90695,2001.9,2001.8,2.90695]
[1617603871186,4.95355,2001.9,2000.5,2.0]
[1617603871386,4.95355,2001.9,2000.7,64.6216]
[1617603872386,30.0,2003.2,2000.7,64.6216]
[1617603872788,32.0,2003.2,2000.7,64.6216]
[1617603872989,32.0,2003.2,2001.8,2.90695]
[1617603873389,30.0,2003.2,2001.8,2.90695]
[1617603873590,30.0,2003.2,2001.8,5.61465]
[1617603873789,83.637,2003.3,2001.8,5.61465]
[1617603874991,2.90695,2001.9,2001.8,5.61465]
[1617603875191,2.90695,2001.9,2001.8,2.90695]
[1617603875391,2.058,2003.7,2001.8,2.90695]
[1617603875592,30.0,2004.0,2002.3,78.2667]
[1617603875795,30.0,2004.0,2002.3,80.7085]
[1617603876491,32.0,2004.0,2002.3,80.7085]
[1617603876891,2.90695,2002.5,2002.4,2.90695]
[1617603878693,2.0,2004.0,2002.4,2.90695]
[1617603878892,2.0,2004.0,2003.2,2.90695]
[1617603879093,2.0,2004.0,2003.2,5.65695]
[1617603879697,2.9957,2004.1,2003.2,5.65695]
[1617603880292,2.9957,2004.1,2003.2,2.75]
[1617603880494,2.9957,2004.1,2002.3,80.7085]
[1617603880893,2.9957,2004.1,2002.7,2.90695]
[1617603882395,2.9957,2004.1,2002.3,78.2667]
[1617603882598,2.9957,2004.1,2001.3,5.19590309]
[1617603882599,35.1933,2004.1,2001.3,5.19590309]
[1617603882798,70.1557,2003.9,2001.4,81.9442]
[1617603883000,72.1557,2003.9,2002.0,2.90695]
[1617603885001,72.1557,2003.9,2002.7,2.90695]
[1617603885800,2.0,2003.9,2002.7,2.90695]
[1617603885999,3.1933,2004.1,2002.7,2.90695]
[1617603886000,2.0,2004.0,2002.7,2.90695]
[1617603887002,2.90695,2002.8,2002.7,2.90695]
[1617603888003,2.90695,2002.8,2002.4,2.5253]
[1617603888204,2.90695,2002.8,2001.8,80.1518]
[1617603889004,2.0429,2003.5,2002.4,2.90695]
[1617603891006,2.90695,2002.5,2002.4,2.90695]
[1617603893813,0.994,2002.8,2002.4,2.90695]
[1617603894014,1.0124,2003.5,2002.4,5.57515]
[1617603894414,2.9957,2004.1,2002.4,5.57515]
[1617603894618,0.9957,2004.1,2002.8,59.7494]
[1617603895018,2.90695,2002.9,2002.8,59.7494]
[1617603898522,0.9957,2004.1,2002.8,59.7494]
[1617603899122,0.9957,2004.1,2003.4,2.90695]
[1617603899321,2.0,2004.9,2003.4,2.90695]
[1617603899322,2.0,2005.1,2003.4,5.26155]
[1617603899723,12.9932,2006.4,2003.4,5.26155]
[1617603900124,61.0959,2006.2,2003.9,83.5232]
[1617603900323,91.0959,2006.2,2003.9,86.1825]
[1617603900523,2.0,2006.1,2003.9,86.1825]
[1617603901122,2.0,2006.1,2004.4,2.90695]
[1617603901324,2.0,2006.1,2004.4,5.37925]
[1617603903124,2.90695,2004.6,2004.4,5.37925]
[1617603906226,2.90695,2004.6,2004.4,2.4723]
[1617603906426,2.90695,2004.6,2004.0,2.0]
[1617603907027,2.0,2006.1,2004.0,2.0]
[1617603907028,2.90695,2004.1,2004.0,4.90695]
[1617603907228,2.0,2006.1,2004.0,4.90695]
[1617603907428,2.0,2006.1,2004.8,70.2948]
[1617603909128,2.90695,2004.9,2004.8,70.2948]
[1617603910629,2.90695,2004.9,2004.2,2.90695]
[1617603911229,2.90695,2004.4,2003.9,2.90695]
[1617603911630,5.14265,2004.4,2003.8,65.2708]
[1617603911830,5.14265,2004.4,2002.2,2.0]
[1617603912029,5.14265,2004.4,2001.8,1.0079]
[1617603912030,5.14265,2004.4,2002.4,71.1875]
[1617603913231,5.14265,2004.4,2003.0,2.90695]
[1617603913232,2.2357,2004.4,2003.0,2.90695]
[1617603914232,80.19,2004.6,2003.0,5.01345]
[1617603915133,2.90695,2003.1,2003.0,5.01345]
[1617603915332,2.0,2004.9,2003.0,5.01345]
[1617603915535,2.0,2005.5,2003.4,68.3901]
[1617603916134,61.3009,2005.6,2003.4,68.3901]
[1617603916534,61.3009,2005.6,2003.4,70.3901]
[1617603916934,0.9939,2006.0,2003.4,2.0]
[1617603917134,30.9916,2006.3,2004.2,60.2137]
[1617603917333,30.0,2006.3,2004.2,62.4013]
[1617603917934,2.0,2006.2,2004.2,62.4013]
[1617603918533,30.0,2006.3,2004.2,62.4013]
[1617603918933,2.0,2006.7,2004.2,62.4013]
[1617603919335,2.0,2006.7,2004.5,2.90695]
[1617603921238,2.90695,2004.6,2004.5,2.90695]
[1617603921838,2.81585,2004.6,2004.5,2.90695]
[1617603923138,2.0,2006.8,2004.5,2.90695]
[1617603923342,33.5821,2007.2,2004.9,2.90695]
[1617603923540,33.5821,2007.2,2005.7,62.9149]
[1617603923739,31.0111,2007.2,2005.7,64.8632]
[1617603924141,1.0111,2007.2,2005.7,1.9483]